bitfinex/quotes_BTCUSD_20251219
["timestamp","ask_amount","ask_price","bid_price","bid_amount"]
[1766154130022,0.00572,88133.0,88123.0,0.42366]
[1766154130229,0.01134623,88135.0,88118.0,0.48516]
[1766154130441,0.00572,88132.0,88118.0,0.48516]
[1766154130649,0.00572,88132.0,88116.0,0.43500867]
[1766154130650,0.01167224,88131.0,88117.0,0.0025]
[1766154130870,0.01167224,88131.0,88117.0,0.01384854]
[1766154131094,0.01167224,88131.0,88117.0,0.0025]
[1766154131875,0.01167224,88131.0,88116.0,0.0025]
[1766154132280,0.01167224,88131.0,88116.0,0.01384867]
[1766154132689,0.47881,88130.0,88116.0,0.01384867]
[1766154132890,0.01430846,88129.0,88116.0,0.01384867]
[1766154133715,0.01430846,88129.0,88116.0,0.0025]
[1766154134553,0.01430846,88129.0,88116.0,0.01384867]
[1766154134755,0.01430846,88129.0,88116.0,0.0025]
[1766154135771,0.01430846,88129.0,88118.0,0.01134841]
[1766154135925,0.01430846,88129.0,88116.0,0.0025]
[1766154135926,0.00572,88128.0,88124.0,0.90882]
[1766154136135,0.0025,88139.0,88124.0,0.90882]
[1766154137054,0.01362622,88128.0,88119.0,0.0025]
[1766154137301,0.0025,88137.0,88119.0,0.0025]
[1766154137302,0.00572,88127.0,88120.0,0.42818816]
[1766154137481,0.00572,88126.0,88120.0,0.41684]
[1766154137809,0.01430846,88137.0,88120.0,0.42818816]
[1766154138006,0.01430846,88137.0,88121.0,0.03404409]
[1766154138205,0.00572,88136.0,88122.0,0.06808727]
[1766154138447,0.00572,88136.0,88123.0,0.90991555]
[1766154138666,0.00572,88136.0,88123.0,0.88722]
[1766154138869,0.00572,88135.0,88123.0,0.88722]
[1766154139078,0.00572,88135.0,88123.0,0.89856777]
[1766154139279,0.00572,88135.0,88123.0,0.88722]
[1766154141240,0.93963,88140.0,88124.0,0.01134764]
[1766154141433,0.93963,88140.0,88127.0,0.01134726]
[1766154141434,0.01362622,88137.0,88127.0,0.01134726]
[1766154141690,0.01362622,88137.0,88130.0,0.06808079]
[1766154141894,0.01362622,88137.0,88132.0,0.05673293]
[1766154142224,0.01362622,88137.0,88127.0,0.22694438]
[1766154142225,0.01362622,88137.0,88128.0,0.01134713]
[1766154142375,0.01362622,88137.0,88128.0,0.06808275]
[1766154142549,0.01362622,88137.0,88127.0,0.01134726]
[1766154142955,0.01430846,88136.0,88126.0,0.01134738]
[1766154143157,0.01430846,88136.0,88125.0,0.95530492]
[1766154143387,0.01430846,88136.0,88126.0,0.05673694]
[1766154143576,0.01430846,88136.0,88127.0,0.06808347]
[1766154143834,0.01430846,88136.0,88127.0,0.01134726]
[1766154144027,0.01430846,88136.0,88128.0,0.01134713]
[1766154144576,0.01430846,88136.0,88126.0,0.06808385]
[1766154145017,0.01430846,88136.0,88126.0,0.01134738]
[1766154145219,0.01430846,88136.0,88125.0,0.47348502]
[1766154145418,0.01430846,88136.0,88125.0,0.4054]
[1766154146317,0.05673501,88129.0,88100.0,3.14e-06]
[1766154146522,0.46556622,88122.0,88113.0,0.00010904]
[1766154146722,0.00572,88121.0,88114.0,0.0025]
[1766154146880,0.00572,88121.0,88113.0,0.00010904]
[1766154147062,0.02002846,88121.0,88113.0,0.00010904]
[1766154147265,0.02002846,88121.0,88114.0,0.0025]
[1766154148181,0.02002846,88121.0,88113.0,0.00010904]
[1766154148524,0.02002846,88121.0,88114.0,0.0025]
[1766154149071,0.02002846,88121.0,88105.0,0.48182]
[1766154149072,0.48769,88118.0,88097.0,0.49317112]
[1766154149273,0.48769,88118.0,88083.0,0.06140382]
[1766154149274,0.48769,88118.0,88104.0,0.05675056]
[1766154149275,0.93963,88116.0,88104.0,0.05675056]
[1766154149479,0.93963,88116.0,88090.0,0.8855412]
[1766154149481,0.24062551,88107.0,88081.0,0.48182]
[1766154149685,0.93963,88099.0,88081.0,0.48182]
[1766154149905,0.02002846,88098.0,88085.0,0.48182]
[1766154150083,0.02002846,88098.0,88086.0,0.0025]
[1766154150288,0.02002846,88098.0,88085.0,0.94408]
[1766154150494,0.01362622,88107.0,88098.0,0.001099]
[1766154150706,0.00572,88106.0,88098.0,0.001099]
[1766154151162,0.00572,88106.0,88095.0,0.48182]
[1766154151619,0.02793468,88107.0,88095.0,0.48182]
[1766154151620,0.01430846,88107.0,88095.0,0.48182]
[1766154151850,0.01145751,88118.0,88107.0,0.001099]
[1766154151851,0.07059145,88117.0,88107.0,0.001099]
[1766154152068,0.0025,88117.0,88107.0,0.001099]
[1766154152309,0.0025,88117.0,88106.0,0.48182]
[1766154152310,0.00572,88116.0,88106.0,0.48182]
[1766154154001,0.0001091,88118.0,88106.0,0.48182]
[1766154154002,0.46328687,88130.0,88116.0,0.001099]
[1766154154336,0.46328687,88130.0,88114.0,0.42952]
[1766154154337,0.0025,88128.0,88114.0,0.42952]
[1766154154635,0.02002846,88129.0,88111.0,0.46226]
[1766154154636,0.01362622,88123.0,88111.0,0.46226]
[1766154154847,0.00572,88122.0,88111.0,0.46226]
[1766154157250,0.93089,88119.0,88105.0,0.0025]
[1766154157453,0.01430846,88118.0,88105.0,0.0026091]
[1766154158297,0.88579675,88115.0,88105.0,0.0026091]
[1766154158506,0.50265846,88114.0,88106.0,0.0025]
[1766154158666,1.32833675,88115.0,88093.0,0.01135163]
[1766154158667,0.48835,88107.0,88093.0,0.01135163]
[1766154158869,0.95091846,88106.0,88096.0,0.01135125]
[1766154159098,0.93661,88106.0,88096.0,0.01135125]
[1766154159299,0.01430846,88105.0,88095.0,0.01135138]
[1766154159622,0.01430846,88105.0,88096.0,0.01135125]
[1766154160743,0.01430846,88105.0,88093.0,0.01135163]
[1766154160868,0.01430846,88105.0,88094.0,0.0025]
[1766154161067,0.01430846,88105.0,88093.0,0.01135163]
[1766154161273,0.01430846,88105.0,88090.0,0.45904]
[1766154161274,0.48835,88103.0,88090.0,0.45904]
[1766154161605,0.01430846,88102.0,88091.0,0.0025]
[1766154162366,0.02565894,88102.0,88091.0,0.0025]
[1766154162581,0.0113506,88101.0,88090.0,0.0025]
[1766154162774,0.01430846,88102.0,88090.0,0.0025]
[1766154162963,0.51400894,88102.0,88090.0,0.0025]
[1766154163170,0.49970048,88102.0,88090.0,0.0025]
[1766154163371,0.01430846,88101.0,88090.0,0.0025]
[1766154163789,0.02565906,88101.0,88090.0,0.0025]
[1766154164040,0.02565906,88101.0,88082.0,0.0102]
[1766154164041,0.48835,88095.0,88078.0,0.45904]
[1766154164257,0.01135163,88093.0,88079.0,0.42952]
[1766154164662,0.94519846,88092.0,88078.0,0.45940423]
[1766154164874,0.48835,88092.0,88078.0,0.45940423]
[1766154165091,0.22699759,88107.0,88093.0,0.42952]
[1766154165092,0.48835,88107.0,88093.0,0.42952]
[1766154165311,0.00572,88106.0,88094.0,0.45222302]
[1766154165502,0.00572,88106.0,88094.0,0.49762867]
[1766154165783,0.00572,88106.0,88094.0,0.42952]
[1766154166473,0.00572,88106.0,88088.0,0.0025]
[1766154166474,0.93089,88105.0,88088.0,0.0025]
[1766154167032,0.93089,88105.0,88088.0,0.43202]
[1766154167194,0.48835,88102.0,88088.0,0.89106]
[1766154167421,0.01388924,88101.0,88090.0,0.0025]
[1766154168125,0.93089,88100.0,88090.0,0.0025]
[1766154168300,0.94224086,88099.0,88090.0,0.0025]
[1766154168503,0.01430846,88098.0,88090.0,0.0025]
[1766154169096,0.95654945,88098.0,88090.0,0.0025]
[1766154169299,0.02002846,88097.0,88078.0,0.0117178]
[1766154169507,0.02002846,88097.0,88079.0,0.02135344]
[1766154169709,0.93089,88096.0,88079.0,0.01135344]
[1766154169936,0.02002846,88097.0,88078.0,0.06848563]
[1766154169937,0.48835,88092.0,88078.0,0.00036423]
[1766154170223,0.95091846,88091.0,88078.0,0.00036423]
[1766154170453,0.93661,88091.0,88078.0,0.00036423]
[1766154170600,0.01430846,88090.0,88078.0,0.00036423]
[1766154171489,0.01430846,88090.0,88079.0,0.0025]
[1766154172628,0.01430846,88090.0,88063.0,0.11357296]
[1766154172629,0.0025,88089.0,88063.0,0.11357296]
[1766154172835,0.48835,88080.0,88065.0,0.01135524]
[1766154173051,0.06811661,88085.0,88063.0,0.04890862]
[1766154173052,0.06811661,88085.0,88063.0,0.47012]
[1766154173053,0.01362622,88079.0,88063.0,0.47012]
[1766154173266,0.00572,88078.0,88064.0,0.45223075]
[1766154173509,0.00572,88078.0,88064.0,0.42952]
[1766154174497,0.00572,88078.0,88065.0,0.02271049]
[1766154174703,0.01135241,88087.0,88067.0,0.47012]
[1766154174896,0.01362622,88080.0,88078.0,0.001099]
[1766154175124,0.01362622,88080.0,88068.0,0.42952]
[1766154175347,0.00572,88079.0,88069.0,0.44087473]
[1766154175552,0.00572,88079.0,88070.0,0.4408746]
[1766154175689,0.00572,88079.0,88070.0,0.42952]
[1766154175889,0.00572,88079.0,88066.0,0.07063019]
[1766154175890,0.00036394,88089.0,88066.0,0.0025]
[1766154176100,0.00036394,88089.0,88060.0,0.0002]
[1766154176101,3.94e-06,88089.0,88083.0,0.89466]
[1766154177383,3.94e-06,88089.0,88078.0,0.00572]
[1766154177384,0.001099,88083.0,88079.0,0.42952]
[1766154177699,0.001099,88083.0,88079.0,0.89466]
[1766154178071,3.94e-06,88089.0,88079.0,0.89466]
[1766154178881,3.94e-06,88089.0,88080.0,0.42952]
[1766154179075,3.94e-06,88089.0,88079.0,0.46514]
[1766154179459,3.94e-06,88089.0,88079.0,0.53326056]
[1766154179857,3.94e-06,88089.0,88080.0,0.01135331]
[1766154180091,3.94e-06,88089.0,88079.0,0.53326056]
[1766154180526,3.94e-06,88089.0,88080.0,0.01135331]
[1766154180678,3.94e-06,88089.0,88081.0,0.01135318]
[1766154180884,3.94e-06,88089.0,88088.0,0.42952]
[1766154181134,3.94e-06,88089.0,88088.0,0.95142142]
[1766154181295,3.94e-06,88098.0,88092.0,0.45942]
[1766154181495,3.94e-06,88098.0,88093.0,0.02270327]
[1766154181702,0.01430846,88108.0,88093.0,0.02270327]
[1766154181703,0.01430846,88108.0,88093.0,0.45222327]
[1766154181899,0.01430846,88108.0,88092.0,0.01135176]
[1766154181900,0.00572,88107.0,88094.0,0.88894]
[1766154182082,0.00572,88107.0,88095.0,0.01135138]
[1766154182285,0.00572,88107.0,88096.0,0.0227025]
[1766154182907,0.00572,88107.0,88095.0,0.09081072]
[1766154183123,0.00572,88107.0,88097.0,0.01135112]
[1766154183324,0.00572,88107.0,88095.0,0.03405414]
[1766154183503,0.00572,88107.0,88096.0,0.06810747]
[1766154183711,0.00572,88107.0,88096.0,0.01135125]
[1766154184137,0.00572,88107.0,88097.0,0.01135112]
[1766154184373,0.00572,88107.0,88095.0,0.02270276]
[1766154184547,0.0025,88108.0,88095.0,0.02270276]
[1766154184754,0.00572,88106.0,88095.0,0.02270276]
[1766154185078,0.00572,88106.0,88097.0,0.01135112]
[1766154185477,0.00572,88106.0,88096.0,0.01135125]
[1766154185678,0.00572,88106.0,88095.0,0.09081053]
[1766154186229,0.00572,88106.0,88096.0,0.06810715]
[1766154186448,0.00572,88106.0,88093.0,0.01135163]
[1766154186449,0.04544,88115.0,88093.0,0.01135163]
[1766154186450,0.04544,88117.0,88102.0,0.41841048]
[1766154186653,0.01430846,88116.0,88106.0,0.86648]
[1766154186830,0.92743,88115.0,88099.0,0.01135086]
[1766154187003,0.001099,88106.0,88097.0,0.01707112]
[1766154187203,0.92743,88113.0,88097.0,0.00572]
[1766154187405,0.94173846,88112.0,88097.0,0.00572]
[1766154187613,0.92743,88112.0,88097.0,0.00572]
[1766154187947,0.92743,88112.0,88097.0,0.01707112]
[1766154188086,0.92743,88112.0,88097.0,0.00572]
[1766154188289,0.0113488,88115.0,88097.0,0.00572]
[1766154188495,0.0113488,88115.0,88093.0,0.01385163]
[1766154188496,0.92743,88113.0,88091.0,0.01135189]
[1766154188872,0.92743,88113.0,88083.0,0.22705703]
[1766154188873,0.01362622,88104.0,88093.0,0.0025]
[1766154189065,0.01362622,88104.0,88084.0,0.0025]
[1766154189066,0.001099,88091.0,88084.0,0.0025]
[1766154189228,0.49254,88099.0,88087.0,0.0025]
[1766154189229,0.00572,88097.0,88087.0,0.0025]
[1766154189788,0.00572,88097.0,88082.0,0.01135305]
[1766154189789,0.00572,88097.0,88079.0,0.47077344]
[1766154189790,0.001099,88087.0,88079.0,0.47077344]
[1766154189994,0.001099,88087.0,88081.0,0.0025]
[1766154190422,0.50684846,88094.0,88081.0,0.01135318]
[1766154190632,0.49254,88094.0,88086.0,0.01135254]
[1766154190832,0.00572,88097.0,88087.0,0.06811445]
[1766154191031,0.00572,88097.0,88088.0,0.01135228]
[1766154191233,0.00572,88097.0,88087.0,0.06811445]
[1766154191234,0.00572,88097.0,88087.0,0.01135241]
[1766154191531,0.00572,88097.0,88089.0,0.01135215]
[1766154191949,0.00572,88097.0,88088.0,0.06811352]
[1766154192127,0.00572,88097.0,88088.0,0.01135228]
[1766154192661,0.00572,88097.0,88087.0,0.01135241]
[1766154192837,0.01430846,88099.0,88087.0,0.01135241]
[1766154193135,0.00572,88098.0,88087.0,0.03405723]
[1766154193278,0.43489,88106.0,88093.0,0.01135163]
[1766154193474,0.49254,88109.0,88097.0,0.01135112]
[1766154193683,0.43489,88113.0,88102.0,0.01135048]
[1766154193684,0.00572,88108.0,88102.0,0.01135048]
[1766154193881,0.00572,88108.0,88100.0,0.01135073]
[1766154193882,0.00582912,88108.0,88100.0,0.01135073]
[1766154194297,0.00010912,88108.0,88101.0,0.40706]
[1766154195202,0.00010912,88108.0,88101.0,0.4184106]
[1766154195414,0.00010912,88108.0,88101.0,0.40706]
[1766154195618,0.00010912,88108.0,88100.0,0.4537]
[1766154195773,0.00010912,88108.0,88100.0,0.86076]
[1766154196175,0.00010912,88108.0,88100.0,0.87211073]
[1766154196390,0.00010912,88108.0,88101.0,0.05675292]
[1766154196593,0.00010912,88108.0,88102.0,0.05675227]
[1766154196806,0.00010912,88108.0,88103.0,0.01135035]
[1766154197155,0.00010912,88108.0,88101.0,0.05675292]
[1766154197156,0.00572,88112.0,88107.0,0.40706]
[1766154197612,0.00572,88112.0,88102.0,0.01385048]
[1766154197812,0.00572,88112.0,88102.0,0.00260912]
[1766154199248,0.38457,88111.0,88102.0,0.00260912]
[1766154199493,0.88152,88107.0,88099.0,0.00572]
[1766154200298,0.88152,88107.0,88091.0,0.01]
[1766154200499,0.88152,88107.0,88092.0,0.01135176]
[1766154200699,0.88152,88107.0,88092.0,0.06811038]
[1766154200876,0.01134932,88111.0,88095.0,0.87022]
[1766154201092,0.49695,88109.0,88095.0,0.87022]
[1766154201309,0.01430846,88108.0,88096.0,0.0025]
[1766154201515,0.01430846,88108.0,88088.0,0.01707228]
[1766154201516,0.01362622,88105.0,88089.0,0.01135215]
[1766154201728,0.01430846,88104.0,88092.0,0.01135176]
[1766154201927,0.01430846,88106.0,88092.0,0.01135176]
[1766154202528,0.89582846,88106.0,88092.0,0.01135176]
[1766154202696,0.02793468,88105.0,88091.0,0.06811077]
[1766154202910,0.02793468,88105.0,88088.0,0.00572]
[1766154202911,0.38457,88103.0,88088.0,0.00572]
[1766154203111,0.00572,88104.0,88085.0,0.0025]
[1766154203112,0.88152,88099.0,88085.0,0.0025]
[1766154203465,0.02565894,88102.0,88085.0,0.0025]
[1766154203466,0.89582846,88098.0,88085.0,0.0025]
[1766154203768,0.88724,88098.0,88085.0,0.0025]
[1766154204669,0.88724,88098.0,88083.0,0.01707292]
[1766154204670,0.88724,88098.0,88083.0,0.00572]
[1766154204822,0.52260958,88097.0,88083.0,0.00572]
[1766154205023,0.50830112,88097.0,88083.0,0.00572]
[1766154205220,0.88152,88095.0,88083.0,0.00572]
[1766154205805,0.01135125,88096.0,88083.0,0.00572]
[1766154205806,0.49695,88093.0,88083.0,0.00572]
[1766154206009,0.01430846,88092.0,88083.0,0.00572]
[1766154207069,0.49695,88093.0,88085.0,0.01362622]
[1766154207293,0.01430846,88092.0,88085.0,0.01362622]
[1766154208632,0.89747044,88100.0,88086.0,0.01362622]
[1766154208858,0.01135112,88097.0,88086.0,0.01362622]
[1766154209058,0.88152,88096.0,88086.0,0.01362622]
[1766154210084,0.88152,88096.0,88083.0,0.00572]
[1766154210276,0.00572,88098.0,88083.0,0.00572]
[1766154210493,0.49695,88097.0,88083.0,0.00572]
[1766154210644,0.88152,88097.0,88083.0,0.00572]
[1766154211059,0.88152,88096.0,88083.0,0.00572]
[1766154212035,0.01135112,88097.0,88083.0,0.00572]
[1766154212239,0.49695,88094.0,88083.0,0.00572]
[1766154213091,0.50830151,88094.0,88083.0,0.00572]
[1766154213269,0.49695,88094.0,88080.0,0.00572]
[1766154213516,0.49695,88094.0,88082.0,0.01362622]
[1766154213665,0.00572,88098.0,88085.0,0.87022]
[1766154214271,0.00572,88098.0,88086.0,0.39048]
[1766154215134,0.00572,88098.0,88086.0,0.40183254]
[1766154215664,0.00572,88098.0,88086.0,0.39048]
[1766154218055,0.00572,88098.0,88086.0,0.40183254]
[1766154218452,0.00572,88098.0,88082.0,0.01362622]
[1766154218453,0.01707099,88098.0,88082.0,0.01362622]
[1766154218757,0.01135151,88094.0,88080.0,0.84668]
[1766154218928,0.01320946,88093.0,88081.0,0.39048]
[1766154219116,0.01320946,88095.0,88081.0,0.39048]
[1766154219323,0.37537,88096.0,88082.0,0.01362622]
[1766154219526,0.49194,88095.0,88082.0,0.01362622]
[1766154220480,0.49194,88095.0,88082.0,0.081744]
[1766154221125,0.49194,88095.0,88082.0,0.47222403]
[1766154221329,0.49194,88095.0,88083.0,0.39048]
[1766154221986,0.49194,88094.0,88082.0,0.46410622]
[1766154222401,0.01135176,88092.0,88082.0,0.46410622]
[1766154222573,0.01135176,88092.0,88082.0,0.45048]
[1766154223265,0.08131989,88093.0,88082.0,0.45048]
[1766154223804,0.01135176,88092.0,88080.0,0.00572]
[1766154224021,0.01320946,88091.0,88080.0,0.00572]
[1766154224216,0.9354204,88093.0,88082.0,0.40410622]
[1766154224217,0.49194,88093.0,88082.0,0.40410622]
[1766154224969,0.86731,88099.0,88082.0,0.47545927]
[1766154225355,0.01135073,88100.0,88084.0,0.39048]
[1766154225487,0.86731,88097.0,88084.0,0.39048]
[1766154225670,0.86731,88096.0,88083.0,0.45048]
[1766154225867,0.86731,88096.0,88085.0,0.01135267]
[1766154226074,0.86731,88096.0,88082.0,0.02497927]
[1766154226075,0.0025,88105.0,88089.0,0.06811255]
[1766154226319,0.0025,88103.0,88092.0,0.84096]
[1766154226798,0.0025,88103.0,88092.0,0.46183176]
[1766154226799,0.86981,88103.0,88092.0,0.46183176]
[1766154227000,0.86981,88103.0,88087.0,0.62324795]
[1766154227001,0.13467622,88122.0,88087.0,0.62324795]
[1766154227003,0.107023,88120.0,88115.0,0.39048]
[1766154227218,0.107023,88120.0,88108.0,0.0113497]
[1766154227219,3e-06,88120.0,88113.0,0.00572]
[1766154227803,3e-06,88120.0,88100.0,0.0125]
[1766154228188,3e-06,88120.0,88102.0,0.0025]
[1766154228189,0.86731,88115.0,88102.0,0.0025]
[1766154228359,0.49194,88110.0,88102.0,0.0025]
[1766154228662,0.01320946,88109.0,88102.0,0.0025]
[1766154229128,0.01320946,88109.0,88100.0,0.00010912]
[1766154229129,0.50578996,88106.0,88100.0,0.00010912]
[1766154229324,0.0025,88104.0,88100.0,0.00010912]
[1766154231070,0.0025,88104.0,88086.0,0.06811468]
[1766154231071,0.01135035,88103.0,88089.0,0.00399943]
[1766154231271,0.37537,88101.0,88090.0,0.00572]
[1766154231497,0.86731,88101.0,88090.0,0.00572]
[1766154232315,0.49194,88101.0,88090.0,0.01707202]
[1766154232489,0.49194,88101.0,88090.0,0.00572]
[1766154233499,0.37537,88099.0,88090.0,0.00572]
[1766154233701,0.50514946,88098.0,88090.0,0.00572]
[1766154233904,0.49194,88098.0,88088.0,0.00572]
[1766154234105,0.01320946,88097.0,88088.0,0.00572]
[1766154236849,0.88051946,88097.0,88088.0,0.00572]
[1766154237123,0.86731,88097.0,88088.0,0.00572]
[1766154237477,0.86731,88097.0,88086.0,0.00572]
[1766154238292,0.49194,88097.0,88086.0,0.01707254]
[1766154239391,0.49194,88097.0,88086.0,0.00572]
[1766154240979,0.49194,88097.0,88086.0,0.43025762]
[1766154241177,0.49194,88097.0,88086.0,0.00572]
[1766154241178,0.86731,88097.0,88086.0,0.00572]
[1766154242134,0.00572,88099.0,88087.0,0.39048]
[1766154243172,0.00572,88099.0,88086.0,0.00572]
[1766154243795,0.00572,88099.0,88094.0,0.72404]
[1766154244000,0.00572,88099.0,88091.0,0.39048]
[1766154244378,0.00572,88099.0,88088.0,0.34491228]
[1766154244631,0.00572,88099.0,88089.0,0.02270431]
[1766154244951,0.00572,88099.0,88090.0,0.01135202]
[1766154245382,0.00572,88099.0,88091.0,0.01135189]
[1766154245581,0.00572,88099.0,88092.0,0.01135176]
[1766154246075,0.00572,88099.0,88091.0,0.02270379]
[1766154246283,0.00572,88099.0,88090.0,0.02270405]
[1766154246705,0.00572,88099.0,88091.0,0.01135189]
[1766154247064,0.00572,88099.0,88092.0,0.01135176]
[1766154247267,0.00572,88099.0,88093.0,0.02270327]
[1766154247472,0.00572,88099.0,88092.0,0.02270353]
[1766154247873,0.00572,88099.0,88091.0,0.33356]
[1766154248824,0.00572,88099.0,88086.0,0.38681]
[1766154249525,0.00572,88099.0,88086.0,0.39816254]
[1766154249721,0.00572,88099.0,88086.0,0.38681]
[1766154249936,0.89201,88099.0,88086.0,0.38681]
[1766154250138,0.01320946,88098.0,88086.0,0.38681]
[1766154250293,0.01320946,88098.0,88088.0,0.005]
[1766154250529,0.49615,88095.0,88088.0,0.005]
[1766154250738,0.00572,88099.0,88088.0,0.01072]
[1766154250940,0.00572,88099.0,88088.0,0.39181]
[1766154251344,0.50187,88099.0,88088.0,0.39181]
[1766154251617,0.49615,88096.0,88088.0,0.005]
[1766154251824,0.01135112,88097.0,88088.0,0.005]
[1766154251825,0.49615,88094.0,88088.0,0.005]
[1766154252046,0.01320946,88093.0,88088.0,0.005]
[1766154252865,0.49615,88093.0,88088.0,0.005]
[1766154253053,0.01320946,88092.0,88088.0,0.005]
[1766154254703,0.01211046,88092.0,88088.0,0.005]
[1766154256158,0.01211046,88092.0,88088.0,0.00363469]
[1766154256781,0.00822,88104.0,88095.0,0.38109]
[1766154257324,0.00822,88104.0,88097.0,0.38109]
[1766154258381,0.00822,88104.0,88097.0,0.01135112]
[1766154258596,0.00572,88107.0,88099.0,0.36181]
[1766154259757,0.00572,88107.0,88101.0,0.31895]
[1766154259963,0.00572,88107.0,88102.0,0.36181]
[1766154260808,0.00572,88107.0,88101.0,0.31895]
[1766154262598,0.00572,88107.0,88098.0,0.36181]
[1766154264004,0.00572,88107.0,88100.0,0.36181]
[1766154264319,0.00572,88107.0,88101.0,0.36181]
[1766154265757,0.0025,88111.0,88101.0,0.36181]
[1766154265963,0.00572,88112.0,88102.0,0.38705273]
[1766154266132,0.0025,88117.0,88103.0,0.0227007]
[1766154266313,0.0025,88117.0,88105.0,0.01135009]
[1766154266728,0.0025,88117.0,88105.0,0.03405027]
[1766154266927,0.0025,88117.0,88107.0,0.05674904]
[1766154267292,0.00572,88118.0,88107.0,0.05674904]
[1766154267293,0.00572,88118.0,88111.0,0.36181]
[1766154268394,0.001099,88111.0,88108.0,0.00572]
[1766154268543,0.49012,88117.0,88108.0,0.00572]
[1766154268750,0.00572,88118.0,88108.0,0.36753]
[1766154268964,0.00572,88118.0,88109.0,0.36181]
[1766154269197,0.00572,88118.0,88110.0,0.36181]
[1766154271463,3e-06,88120.0,88110.0,0.36181]
[1766154271464,0.0025,88119.0,88110.0,0.36181]
[1766154271639,3e-06,88120.0,88119.0,0.36181]
[1766154272131,3e-06,88120.0,88116.0,0.00572]
[1766154272132,0.001099,88119.0,88117.0,0.0025]
[1766154272335,3e-06,88120.0,88117.0,0.0025]
[1766154273108,3e-06,88120.0,88114.0,0.00572]
[1766154273109,0.00011214,88120.0,88114.0,0.00572]
[1766154274535,0.00011214,88120.0,88114.0,0.01706893]
[1766154274730,1.4e-07,88120.0,88115.0,0.34356]
[1766154274931,1.4e-07,88120.0,88116.0,0.0025]
[1766154276012,1.4e-07,88120.0,88115.0,0.0025]
[1766154276162,0.000112,88116.0,88115.0,0.0025]
[1766154276579,1.4e-07,88120.0,88115.0,0.0025]
[1766154277197,0.000112,88115.0,88114.0,0.00572]
[1766154277400,0.000112,88115.0,88114.0,0.00822]
[1766154277800,1.4e-07,88120.0,88100.0,0.34356]
[1766154277801,0.37753,88119.0,88100.0,0.34356]
[1766154278055,0.45918,88115.0,88102.0,0.34356]
[1766154278264,0.45918,88113.0,88103.0,0.00572]
[1766154278901,0.000112,88103.0,88102.0,0.00572]
[1766154279300,0.90480528,88112.0,88102.0,0.00572]
[1766154279301,0.84805919,88112.0,88102.0,0.00572]
[1766154279516,0.01134932,88111.0,88102.0,0.00572]
[1766154279938,0.01134944,88110.0,88102.0,0.00572]
[1766154280137,1.73393059,88112.0,88102.0,0.00572]
[1766154280344,1.7225814,88112.0,88102.0,0.00572]
[1766154280547,1.73393059,88112.0,88102.0,0.00572]
[1766154280753,0.01134957,88109.0,88102.0,0.00572]
[1766154280962,0.01134957,88109.0,88102.0,0.005608]
[1766154281168,0.45918,88100.0,88089.0,0.00572]
[1766154281374,0.83671,88099.0,88089.0,0.00572]
[1766154281892,0.45918,88099.0,88089.0,0.00572]
[1766154283594,0.01135112,88097.0,88089.0,0.00572]
[1766154283926,0.45918,88098.0,88089.0,0.00572]
[1766154284380,0.8858714,88100.0,88089.0,0.00572]
[1766154284974,0.89722213,88100.0,88089.0,0.00572]
[1766154285131,0.8858714,88100.0,88089.0,0.34928]
[1766154285301,0.95397593,88100.0,88089.0,0.34928]
[1766154285502,0.45918,88101.0,88089.0,0.34928]
[1766154285834,0.8858714,88100.0,88089.0,0.34928]
[1766154286219,0.45918,88101.0,88089.0,0.34928]
[1766154286442,0.45918,88101.0,88091.0,0.34356]
[1766154286787,0.00572,88104.0,88092.0,0.34356]
[1766154287259,0.06809639,88111.0,88090.0,0.01135202]
[1766154287260,0.0025,88110.0,88093.0,0.31895]
[1766154287468,0.01134932,88111.0,88104.0,0.001099]
[1766154287671,0.0025,88109.0,88104.0,0.001099]
[1766154287873,0.0025,88109.0,88101.0,0.00572]
[1766154289136,0.0025,88106.0,88101.0,0.00572]
[1766154289336,0.0025,88108.0,88101.0,0.00572]
[1766154290194,0.01134996,88106.0,88101.0,0.00572]
[1766154290396,0.01135073,88100.0,88088.0,0.00363469]
[1766154290712,0.01135073,88100.0,88088.0,0.34719469]
[1766154290713,0.01135086,88099.0,88088.0,0.34719469]
[1766154290891,0.45918,88101.0,88088.0,0.34719469]
[1766154291080,0.45918,88101.0,88090.0,0.34356]
[1766154291280,0.01135073,88100.0,88090.0,0.34356]
[1766154291481,0.06810525,88099.0,88090.0,0.34356]
[1766154291680,0.4692806,88101.0,88091.0,0.00572]
[1766154292131,0.01135073,88100.0,88088.0,0.32258469]
[1766154292345,0.37753,88099.0,88088.0,0.00363469]
[1766154292515,0.06810679,88097.0,88089.0,0.00572]
[1766154292732,0.01135112,88097.0,88089.0,0.00572]
[1766154292909,0.06810722,88098.0,88089.0,0.00572]
[1766154293104,0.06810751,88096.0,88089.0,0.00572]
[1766154293311,0.37753,88098.0,88089.0,0.00572]
[1766154293516,0.45918,88097.0,88089.0,0.00572]
[1766154293723,0.45918,88096.0,88089.0,0.00572]
[1766154293923,0.45918,88096.0,88088.0,0.00363469]
[1766154294129,0.45918,88096.0,88089.0,0.00572]
[1766154294751,0.45918,88096.0,88089.0,0.00447]
[1766154296043,0.83671,88096.0,88089.0,0.00447]
[1766154296259,0.01135086,88099.0,88089.0,0.00447]
[1766154296759,0.45918,88101.0,88089.0,0.00447]
[1766154297024,0.37753,88103.0,88099.0,0.001099]
[1766154297025,1.72276458,88100.0,88099.0,0.001099]
[1766154297209,0.83671,88100.0,88099.0,0.001099]
[1766154297436,0.06810116,88105.0,88089.0,0.00447]
[1766154297637,0.45918,88099.0,88089.0,0.00447]
[1766154297866,0.45918,88095.0,88089.0,0.00447]
[1766154299475,0.45918,88095.0,88088.0,0.00935469]
[1766154299674,0.458081,88095.0,88088.0,0.00935469]
[1766154300037,0.88605458,88100.0,88088.0,0.00935469]
[1766154300266,0.37753,88099.0,88088.0,0.00363469]
[1766154300629,0.88605458,88100.0,88077.0,0.04544]
[1766154300630,0.001099,88088.0,88077.0,0.04544]
[1766154300848,0.001099,88088.0,88057.0,0.06231575]
[1766154300849,0.001099,88088.0,88054.0,0.02271333]
[1766154300850,0.37753,88069.0,88054.0,0.02271333]
[1766154301040,0.37753,88069.0,88054.0,0.66486]